[Event "Live Chess"]
[Site "Chess.com"]
[Date "2010.12.14"]
[Round "-"]
[White "sorinturturea"]
[Black "hipposcottimus"]
[Result "1-0"]
[CurrentPosition "3r2k1/ppp2pp1/7p/7P/2P2PP1/nP6/P3K3/8 b - f3"]
[Timezone "UTC"]
[ECO "C55"]
[ECOUrl "https://www.chess.com/openings/Italian-Game-Two-Knights-Defense-4.O-O"]
[UTCDate "2010.12.14"]
[UTCTime "10:32:36"]
[WhiteElo "1580"]
[BlackElo "1653"]
[TimeControl "60"]
[Termination "sorinturturea won on time"]
[StartTime "10:32:36"]
[EndDate "2010.12.14"]
[EndTime "10:34:27"]
[Link "https://www.chess.com/game/live/77168164"]

1. e4 {[%clk 0:01:00]} 1... e5 {[%clk 0:01:00]} 2. Nf3 {[%clk 0:00:59.3]} 2... Nc6 {[%clk 0:00:59.6]} 3. Bc4 {[%clk 0:00:58.8]} 3... Nf6 {[%clk 0:00:59]} 4. O-O {[%clk 0:00:58.8]} 4... d5 {[%clk 0:00:58.3]} 5. exd5 {[%clk 0:00:57.3]} 5... Nxd5 {[%clk 0:00:58]} 6. Re1 {[%clk 0:00:56.3]} 6... Be6 {[%clk 0:00:48.9]} 7. d4 {[%clk 0:00:54.7]} 7... Na5 {[%clk 0:00:41.9]} 8. Bxd5 {[%clk 0:00:52.6]} 8... Qxd5 {[%clk 0:00:38.6]} 9. Rxe5 {[%clk 0:00:52.6]} 9... Bd6 {[%clk 0:00:17.7]} 10. Rxd5 {[%clk 0:00:50.2]} 10... Bxd5 {[%clk 0:00:17.4]} 11. b3 {[%clk 0:00:48.6]} 11... O-O {[%clk 0:00:17]} 12. c4 {[%clk 0:00:47.9]} 12... Bxf3 {[%clk 0:00:15.2]} 13. Qxf3 {[%clk 0:00:45.9]} 13... Nc6 {[%clk 0:00:14.9]} 14. Bf4 {[%clk 0:00:45.2]} 14... Nxd4 {[%clk 0:00:14.2]} 15. Qg4 {[%clk 0:00:43.1]} 15... Bxf4 {[%clk 0:00:12.1]} 16. Qxf4 {[%clk 0:00:41.6]} 16... Ne2+ {[%clk 0:00:11.8]} 17. Kf1 {[%clk 0:00:40.2]} 17... Nxf4 {[%clk 0:00:11.5]} 18. Nd2 {[%clk 0:00:39.2]} 18... Ng6 {[%clk 0:00:11.1]} 19. Nf3 {[%clk 0:00:37.9]} 19... Rfd8 {[%clk 0:00:10.8]} 20. Re1 {[%clk 0:00:37.4]} 20... Rd7 {[%clk 0:00:10.2]} 21. g3 {[%clk 0:00:36.7]} 21... Rad8 {[%clk 0:00:09.8]} 22. h4 {[%clk 0:00:36.1]} 22... Rd1 {[%clk 0:00:09.5]} 23. h5 {[%clk 0:00:34.6]} 23... Rxe1+ {[%clk 0:00:08.1]} 24. Kxe1 {[%clk 0:00:34.6]} 24... Ne7 {[%clk 0:00:06.7]} 25. g4 {[%clk 0:00:33.2]} 25... Nc6 {[%clk 0:00:06.4]} 26. Ke2 {[%clk 0:00:31.8]} 26... Nd4+ {[%clk 0:00:06.1]} 27. Kd3 {[%clk 0:00:31.8]} 27... Nxf3+ {[%clk 0:00:04.9]} 28. Ke3 {[%clk 0:00:31.4]} 28... Ng5 {[%clk 0:00:04.4]} 29. Kf4 {[%clk 0:00:30.1]} 29... h6 {[%clk 0:00:02.4]} 30. Kg3 {[%clk 0:00:30.1]} 30... Ne4+ {[%clk 0:00:01.2]} 31. Kf3 {[%clk 0:00:27.9]} 31... Nd2+ {[%clk 0:00:00.9]} 32. Ke3 {[%clk 0:00:26.7]} 32... Nb1 {[%clk 0:00:00.6]} 33. Ke2 {[%clk 0:00:26.7]} 33... Na3 {[%clk 0:00:00.2]} 34. f4 {[%clk 0:00:26.2]} 1-0

[Event "Live Chess"]
[Site "Chess.com"]
[Date "2010.12.14"]
[Round "-"]
[White "hipposcottimus"]
[Black "sorinturturea"]
[Result "1-0"]
[CurrentPosition "r1b1r2k/3p1pQ1/3Bp3/2p1P3/p2P1P2/P6P/7P/6RK b - -"]
[Timezone "UTC"]
[ECO "B30"]
[ECOUrl "https://www.chess.com/openings/Sicilian-Defense-Nyezhmetdinov-Rossolimo-Attack-3...e6-4.Bxc6-bxc6"]
[UTCDate "2010.12.14"]
[UTCTime "10:30:18"]
[WhiteElo "1662"]
[BlackElo "1569"]
[TimeControl "60"]
[Termination "hipposcottimus won by checkmate"]
[StartTime "10:30:18"]
[EndDate "2010.12.14"]
[EndTime "10:32:17"]
[Link "https://www.chess.com/game/live/77167650"]

1. e4 {[%clk 0:01:00]} 1... c5 {[%clk 0:01:00]} 2. Nf3 {[%clk 0:00:59.5]} 2... Nc6 {[%clk 0:01:00]} 3. Bb5 {[%clk 0:00:57.1]} 3... e6 {[%clk 0:00:58.2]} 4. Bxc6 {[%clk 0:00:55.9]} 4... bxc6 {[%clk 0:00:57.7]} 5. Nc3 {[%clk 0:00:55.6]} 5... a6 {[%clk 0:00:57.7]} 6. d4 {[%clk 0:00:55.3]} 6... cxd4 {[%clk 0:00:54.9]} 7. Nxd4 {[%clk 0:00:55]} 7... Nf6 {[%clk 0:00:54.1]} 8. O-O {[%clk 0:00:52.9]} 8... Bc5 {[%clk 0:00:53.5]} 9. f4 {[%clk 0:00:51.3]} 9... O-O {[%clk 0:00:51.5]} 10. e5 {[%clk 0:00:50.1]} 10... Nd5 {[%clk 0:00:48.8]} 11. Kh1 {[%clk 0:00:45.8]} 11... Nxc3 {[%clk 0:00:45.4]} 12. bxc3 {[%clk 0:00:44.3]} 12... Bxd4 {[%clk 0:00:44.7]} 13. cxd4 {[%clk 0:00:42.8]} 13... Qb6 {[%clk 0:00:43.6]} 14. c3 {[%clk 0:00:41.7]} 14... Qc7 {[%clk 0:00:39.1]} 15. Ba3 {[%clk 0:00:41.3]} 15... Re8 {[%clk 0:00:37.2]} 16. Bd6 {[%clk 0:00:40.8]} 16... Qb6 {[%clk 0:00:35.1]} 17. Rb1 {[%clk 0:00:40.1]} 17... Qa5 {[%clk 0:00:34.5]} 18. a3 {[%clk 0:00:38]} 18... Qxc3 {[%clk 0:00:32.4]} 19. Rb3 {[%clk 0:00:35]} 19... Qc4 {[%clk 0:00:29.8]} 20. Rh3 {[%clk 0:00:25.9]} 20... a5 {[%clk 0:00:25.1]} 21. Rg1 {[%clk 0:00:25.1]} 21... a4 {[%clk 0:00:23.6]} 22. Qh5 {[%clk 0:00:24]} 22... h6 {[%clk 0:00:21.4]} 23. Rg3 {[%clk 0:00:23.1]} 23... Qd3 {[%clk 0:00:10.7]} 24. Qxh6 {[%clk 0:00:20.6]} 24... Qh7 {[%clk 0:00:09.5]} 25. Qg5 {[%clk 0:00:15.6]} 25... Kh8 {[%clk 0:00:06.3]} 26. Rh3 {[%clk 0:00:14.3]} 26... Qxh3 {[%clk 0:00:03.7]} 27. gxh3 {[%clk 0:00:13.7]} 27... c5 {[%clk 0:00:02.8]} 28. Qxg7# {[%clk 0:00:12.6]} 1-0

[Event "Live Chess"]
[Site "Chess.com"]
[Date "2010.12.14"]
[Round "-"]
[White "sorinturturea"]
[Black "hipposcottimus"]
[Result "0-1"]
[CurrentPosition "r3k2r/ppp3pp/4q3/3Qp1B1/5N2/2N5/PPP2KPP/R3R3 w kq -"]
[Timezone "UTC"]
[ECO "C55"]
[ECOUrl "https://www.chess.com/openings/Italian-Game-Two-Knights-Defense-4.O-O"]
[UTCDate "2010.12.14"]
[UTCTime "10:28:05"]
[WhiteElo "1575"]
[BlackElo "1656"]
[TimeControl "60"]
[Termination "hipposcottimus won on time"]
[StartTime "10:28:05"]
[EndDate "2010.12.14"]
[EndTime "10:30:01"]
[Link "https://www.chess.com/game/live/77167239"]

1. e4 {[%clk 0:01:00]} 1... e5 {[%clk 0:01:00]} 2. Nf3 {[%clk 0:00:58.1]} 2... Nc6 {[%clk 0:00:59.7]} 3. Bc4 {[%clk 0:00:57.5]} 3... Nf6 {[%clk 0:00:59.4]} 4. O-O {[%clk 0:00:56.6]} 4... d5 {[%clk 0:00:58.8]} 5. exd5 {[%clk 0:00:55]} 5... Nxd5 {[%clk 0:00:58.5]} 6. Re1 {[%clk 0:00:53.9]} 6... f6 {[%clk 0:00:56.7]} 7. d4 {[%clk 0:00:49.3]} 7... Nb6 {[%clk 0:00:55.7]} 8. Bb3 {[%clk 0:00:43.7]} 8... Bd6 {[%clk 0:00:52.5]} 9. dxe5 {[%clk 0:00:40.6]} 9... fxe5 {[%clk 0:00:52.1]} 10. Bg5 {[%clk 0:00:34.5]} 10... Qd7 {[%clk 0:00:48.1]} 11. Nc3 {[%clk 0:00:25.2]} 11... Nd4 {[%clk 0:00:46.1]} 12. Nxd4 {[%clk 0:00:23.3]} 12... Bc5 {[%clk 0:00:33.1]} 13. Ne6 {[%clk 0:00:13.9]} 13... Bxf2+ {[%clk 0:00:23.3]} 14. Kxf2 {[%clk 0:00:10.5]} 14... Qf7+ {[%clk 0:00:22.9]} 15. Nf4 {[%clk 0:00:07.5]} 15... Be6 {[%clk 0:00:22.5]} 16. Bxe6 {[%clk 0:00:04.9]} 16... Nd5 {[%clk 0:00:14.6]} 17. Qxd5 {[%clk 0:00:00.4]} 17... Qxe6 {[%clk 0:00:12.5]} 0-1

[Event "Live Chess"]
[Site "Chess.com"]
[Date "2010.12.14"]
[Round "-"]
[White "hipposcottimus"]
[Black "lionzion"]
[Result "1-0"]
[CurrentPosition "r2qr1k1/2pnppQp/6pB/p2P1b2/2p5/4R1P1/5P1P/2K3R1 b - -"]
[Timezone "UTC"]
[ECO "B07"]
[ECOUrl "https://www.chess.com/openings/Pirc-Defense-Modern-Defense-Geller-System-2...Nf6-3.Nc3-g6"]
[UTCDate "2010.12.14"]
[UTCTime "10:25:50"]
[WhiteElo "1650"]
[BlackElo "1821"]
[TimeControl "60"]
[Termination "hipposcottimus won by checkmate"]
[StartTime "10:25:50"]
[EndDate "2010.12.14"]
[EndTime "10:27:40"]
[Link "https://www.chess.com/game/live/77166846"]

1. e4 {[%clk 0:01:00]} 1... d6 {[%clk 0:01:00]} 2. Nf3 {[%clk 0:00:59.6]} 2... Nf6 {[%clk 0:00:59.7]} 3. Nc3 {[%clk 0:00:56.7]} 3... g6 {[%clk 0:00:59.2]} 4. d4 {[%clk 0:00:56.3]} 4... Bg7 {[%clk 0:00:58.5]} 5. e5 {[%clk 0:00:56.1]} 5... dxe5 {[%clk 0:00:57]} 6. dxe5 {[%clk 0:00:55.9]} 6... Nfd7 {[%clk 0:00:55.8]} 7. Bf4 {[%clk 0:00:52.7]} 7... b6 {[%clk 0:00:54.4]} 8. Qe2 {[%clk 0:00:50.9]} 8... Bb7 {[%clk 0:00:53.8]} 9. Nd4 {[%clk 0:00:49.4]} 9... Nc6 {[%clk 0:00:52.2]} 10. Nb3 {[%clk 0:00:47.3]} 10... Ncxe5 {[%clk 0:00:49.2]} 11. O-O-O {[%clk 0:00:41.3]} 11... Nc6 {[%clk 0:00:45.6]} 12. g3 {[%clk 0:00:35.7]} 12... Bxc3 {[%clk 0:00:44.1]} 13. bxc3 {[%clk 0:00:32.4]} 13... O-O {[%clk 0:00:43.7]} 14. Bg2 {[%clk 0:00:31.7]} 14... a5 {[%clk 0:00:39.9]} 15. Nd4 {[%clk 0:00:29.7]} 15... Nxd4 {[%clk 0:00:37.8]} 16. cxd4 {[%clk 0:00:29.4]} 16... Bxg2 {[%clk 0:00:36.7]} 17. Rhg1 {[%clk 0:00:29]} 17... Bd5 {[%clk 0:00:35.1]} 18. Bh6 {[%clk 0:00:22.7]} 18... Re8 {[%clk 0:00:33.1]} 19. Qd3 {[%clk 0:00:16.5]} 19... Bxa2 {[%clk 0:00:31.7]} 20. Qa3 {[%clk 0:00:14.1]} 20... Bd5 {[%clk 0:00:29.6]} 21. c4 {[%clk 0:00:12]} 21... Bf3 {[%clk 0:00:28.4]} 22. Rd3 {[%clk 0:00:07.4]} 22... Be4 {[%clk 0:00:26.3]} 23. Re3 {[%clk 0:00:05.9]} 23... Bf5 {[%clk 0:00:24.5]} 24. Qc3 {[%clk 0:00:05.4]} 24... b5 {[%clk 0:00:22.4]} 25. d5 {[%clk 0:00:04.8]} 25... bxc4 {[%clk 0:00:19.9]} 26. Qg7# {[%clk 0:00:03.5]} 1-0

[Event "Live Chess"]
[Site "Chess.com"]
[Date "2010.12.14"]
[Round "-"]
[White "lionzion"]
[Black "hipposcottimus"]
[Result "1-0"]
[CurrentPosition "r1b2rk1/5pQp/p1q5/1pn5/6PP/1P3P2/PBP3B1/1K1R2R1 b - -"]
[Timezone "UTC"]
[ECO "A40"]
[ECOUrl "https://www.chess.com/openings/Englund-Gambit-Declined-Reversed-Alekhine-Variation"]
[UTCDate "2010.12.14"]
[UTCTime "10:24:06"]
[WhiteElo "1821"]
[BlackElo "1650"]
[TimeControl "60"]
[Termination "lionzion won by checkmate"]
[StartTime "10:24:06"]
[EndDate "2010.12.14"]
[EndTime "10:25:36"]
[Link "https://www.chess.com/game/live/77166496"]

1. Nf3 {[%clk 0:01:00]} 1... e5 {[%clk 0:01:00]} 2. d4 {[%clk 0:00:59.7]} 2... e4 {[%clk 0:00:59.1]} 3. Nfd2 {[%clk 0:00:58.7]} 3... d5 {[%clk 0:00:58.6]} 4. f3 {[%clk 0:00:58.4]} 4... Nf6 {[%clk 0:00:58.1]} 5. b3 {[%clk 0:00:58]} 5... e3 {[%clk 0:00:57]} 6. Bb2 {[%clk 0:00:48.6]} 6... exd2+ {[%clk 0:00:55.3]} 7. Qxd2 {[%clk 0:00:48.3]} 7... Bd6 {[%clk 0:00:54.4]} 8. Nc3 {[%clk 0:00:47.9]} 8... O-O {[%clk 0:00:53.9]} 9. O-O-O {[%clk 0:00:46]} 9... c5 {[%clk 0:00:52.2]} 10. dxc5 {[%clk 0:00:44.7]} 10... Nh5 {[%clk 0:00:48.7]} 11. cxd6 {[%clk 0:00:42.5]} 11... Qxd6 {[%clk 0:00:48.4]} 12. g4 {[%clk 0:00:41.8]} 12... Nf4 {[%clk 0:00:46.1]} 13. h4 {[%clk 0:00:39.8]} 13... Nc6 {[%clk 0:00:39.9]} 14. Bg2 {[%clk 0:00:39.1]} 14... Nb4 {[%clk 0:00:38.9]} 15. Rhg1 {[%clk 0:00:38.2]} 15... b5 {[%clk 0:00:37.6]} 16. Kb1 {[%clk 0:00:36.9]} 16... a6 {[%clk 0:00:36.1]} 17. e3 {[%clk 0:00:33.9]} 17... Ne6 {[%clk 0:00:33.7]} 18. e4 {[%clk 0:00:30.9]} 18... d4 {[%clk 0:00:32.1]} 19. Nd5 {[%clk 0:00:29]} 19... Nxd5 {[%clk 0:00:30]} 20. exd5 {[%clk 0:00:27.3]} 20... Qxd5 {[%clk 0:00:29.7]} 21. Bxd4 {[%clk 0:00:25.6]} 21... Qb7 {[%clk 0:00:27.8]} 22. Bb2 {[%clk 0:00:23.5]} 22... Nc5 {[%clk 0:00:26.6]} 23. Qc3 {[%clk 0:00:22.1]} 23... Qc6 {[%clk 0:00:21.9]} 24. Qxg7# {[%clk 0:00:20.4]} 1-0

[Event "Live Chess"]
[Site "Chess.com"]
[Date "2010.12.14"]
[Round "-"]
[White "GraemeWalsh"]
[Black "hipposcottimus"]
[Result "1-0"]
[CurrentPosition "2r5/6Rp/bp6/3N4/5P2/4Rk2/PPr4P/6K1 b - -"]
[Timezone "UTC"]
[ECO "B00"]
[ECOUrl "https://www.chess.com/openings/Nimzowitsch-Defense-Kennedy-Variation"]
[UTCDate "2010.12.14"]
[UTCTime "10:22:06"]
[WhiteElo "1958"]
[BlackElo "1650"]
[TimeControl "60"]
[Termination "GraemeWalsh won by checkmate"]
[StartTime "10:22:06"]
[EndDate "2010.12.14"]
[EndTime "10:23:51"]
[Link "https://www.chess.com/game/live/77166114"]

1. e4 {[%clk 0:01:00]} 1... e5 {[%clk 0:01:00]} 2. d4 {[%clk 0:00:59.3]} 2... Nc6 {[%clk 0:00:59.7]} 3. Nf3 {[%clk 0:00:57.8]} 3... exd4 {[%clk 0:00:57.7]} 4. Bc4 {[%clk 0:00:57.3]} 4... d5 {[%clk 0:00:56.3]} 5. Bxd5 {[%clk 0:00:54.6]} 5... Nf6 {[%clk 0:00:53.6]} 6. Bxc6+ {[%clk 0:00:50.9]} 6... bxc6 {[%clk 0:00:51.7]} 7. e5 {[%clk 0:00:50.9]} 7... Ne4 {[%clk 0:00:49.1]} 8. Qxd4 {[%clk 0:00:46.4]} 8... Qd5 {[%clk 0:00:45.1]} 9. Qxd5 {[%clk 0:00:44.5]} 9... cxd5 {[%clk 0:00:44.1]} 10. O-O {[%clk 0:00:43.8]} 10... c6 {[%clk 0:00:42.4]} 11. Nbd2 {[%clk 0:00:42.8]} 11... Ba6 {[%clk 0:00:40.9]} 12. Re1 {[%clk 0:00:39.4]} 12... Nxd2 {[%clk 0:00:39.5]} 13. Bxd2 {[%clk 0:00:39.4]} 13... Bc5 {[%clk 0:00:38]} 14. Be3 {[%clk 0:00:37.5]} 14... Bb6 {[%clk 0:00:35.7]} 15. Bxb6 {[%clk 0:00:35.9]} 15... axb6 {[%clk 0:00:35.4]} 16. e6 {[%clk 0:00:35.9]} 16... O-O {[%clk 0:00:32.6]} 17. exf7+ {[%clk 0:00:31.8]} 17... Rxf7 {[%clk 0:00:31.8]} 18. Ne5 {[%clk 0:00:31.4]} 18... Re7 {[%clk 0:00:30.4]} 19. Nxc6 {[%clk 0:00:30.6]} 19... Rc7 {[%clk 0:00:29.2]} 20. Ne7+ {[%clk 0:00:28.2]} 20... Kf7 {[%clk 0:00:26.8]} 21. Nxd5 {[%clk 0:00:27.5]} 21... Rxc2 {[%clk 0:00:25.3]} 22. Re7+ {[%clk 0:00:26.8]} 22... Kg6 {[%clk 0:00:23.9]} 23. Rae1 {[%clk 0:00:24.2]} 23... Rac8 {[%clk 0:00:22.6]} 24. R1e6+ {[%clk 0:00:21.3]} 24... Kg5 {[%clk 0:00:21.8]} 25. f4+ {[%clk 0:00:14.9]} 25... Kh5 {[%clk 0:00:19.6]} 26. g4+ {[%clk 0:00:13.1]} 26... Kxg4 {[%clk 0:00:18]} 27. Rxg7+ {[%clk 0:00:12.8]} 27... Kf3 {[%clk 0:00:17.3]} 28. Re3# {[%clk 0:00:11.6]} 1-0

[Event "Live Chess"]
[Site "Chess.com"]
[Date "2010.12.14"]
[Round "-"]
[White "hipposcottimus"]
[Black "DimitrisC"]
[Result "1-0"]
[CurrentPosition "r3r1k1/p1p2bpp/1b6/1N3p2/5P2/3P3R/PP4PP/5R1K b - -"]
[Timezone "UTC"]
[ECO "C57"]
[ECOUrl "https://www.chess.com/openings/Italian-Game-Knight-Attack-Fritz-Variation-6.c3-b5"]
[UTCDate "2010.12.14"]
[UTCTime "10:19:39"]
[WhiteElo "1650"]
[BlackElo "1407"]
[TimeControl "60"]
[Termination "hipposcottimus won on time"]
[StartTime "10:19:39"]
[EndDate "2010.12.14"]
[EndTime "10:21:53"]
[Link "https://www.chess.com/game/live/77165614"]

1. e4 {[%clk 0:01:00]} 1... e5 {[%clk 0:01:00]} 2. Nf3 {[%clk 0:00:59.6]} 2... Nc6 {[%clk 0:00:59.4]} 3. Bc4 {[%clk 0:00:59.1]} 3... Nf6 {[%clk 0:00:58.5]} 4. Ng5 {[%clk 0:00:58.5]} 4... d5 {[%clk 0:00:58.1]} 5. exd5 {[%clk 0:00:57.8]} 5... Nd4 {[%clk 0:00:57]} 6. c3 {[%clk 0:00:55.6]} 6... b5 {[%clk 0:00:55.7]} 7. cxd4 {[%clk 0:00:48.5]} 7... bxc4 {[%clk 0:00:54.7]} 8. Qa4+ {[%clk 0:00:48.2]} 8... Bd7 {[%clk 0:00:50.5]} 9. Qxc4 {[%clk 0:00:47.9]} 9... exd4 {[%clk 0:00:47.6]} 10. Qxd4 {[%clk 0:00:44.3]} 10... Bd6 {[%clk 0:00:42.1]} 11. Ne4 {[%clk 0:00:40.9]} 11... Be7 {[%clk 0:00:35.9]} 12. O-O {[%clk 0:00:38.1]} 12... O-O {[%clk 0:00:35]} 13. d3 {[%clk 0:00:37.4]} 13... Bc6 {[%clk 0:00:33.1]} 14. Qc4 {[%clk 0:00:31.8]} 14... Bxd5 {[%clk 0:00:31.4]} 15. Nxf6+ {[%clk 0:00:29]} 15... Bxf6 {[%clk 0:00:29.7]} 16. Qf4 {[%clk 0:00:27.1]} 16... Re8 {[%clk 0:00:25.9]} 17. Nc3 {[%clk 0:00:25.4]} 17... Be5 {[%clk 0:00:24.1]} 18. Qg4 {[%clk 0:00:23]} 18... Be6 {[%clk 0:00:21.9]} 19. Qg5 {[%clk 0:00:18.1]} 19... Qd6 {[%clk 0:00:18.4]} 20. Qe3 {[%clk 0:00:15.1]} 20... f5 {[%clk 0:00:15]} 21. f4 {[%clk 0:00:12.4]} 21... Bf6 {[%clk 0:00:12.4]} 22. Qg3 {[%clk 0:00:11]} 22... Bd4+ {[%clk 0:00:10.1]} 23. Kh1 {[%clk 0:00:09.7]} 23... Bf7 {[%clk 0:00:08.7]} 24. Be3 {[%clk 0:00:07.7]} 24... Bxe3 {[%clk 0:00:07.3]} 25. Rf3 {[%clk 0:00:05.7]} 25... Bb6 {[%clk 0:00:03.5]} 26. Nb5 {[%clk 0:00:05.2]} 26... Qg6 {[%clk 0:00:02.4]} 27. Qh3 {[%clk 0:00:02]} 27... Qh6 {[%clk 0:00:01.2]} 28. Raf1 {[%clk 0:00:01.3]} 28... Qxh3 {[%clk 0:00:00.2]} 29. Rxh3 {[%clk 0:00:01]} 1-0

[Event "Live Chess"]
[Site "Chess.com"]
[Date "2010.12.14"]
[Round "-"]
[White "hipposcottimus"]
[Black "Stephon123"]
[Result "1-0"]
[CurrentPosition "8/p1P3pk/P7/6Q1/P3p3/3r4/5PPP/R5K1 b - -"]
[Timezone "UTC"]
[ECO "C57"]
[ECOUrl "https://www.chess.com/openings/Italian-Game-Knight-Attack"]
[UTCDate "2010.12.14"]
[UTCTime "10:13:19"]
[WhiteElo "1650"]
[BlackElo "1255"]
[TimeControl "60"]
[Termination "hipposcottimus won on time"]
[StartTime "10:13:19"]
[EndDate "2010.12.14"]
[EndTime "10:15:11"]
[Link "https://www.chess.com/game/live/77164417"]

1. e4 {[%clk 0:01:00]} 1... e5 {[%clk 0:01:00]} 2. Nf3 {[%clk 0:00:58.8]} 2... Nc6 {[%clk 0:00:59.6]} 3. Bc4 {[%clk 0:00:58.5]} 3... Nf6 {[%clk 0:00:59]} 4. Ng5 {[%clk 0:00:58]} 4... Be7 {[%clk 0:00:58.7]} 5. Nxf7 {[%clk 0:00:54]} 5... d5 {[%clk 0:00:52.9]} 6. Nxd8 {[%clk 0:00:52.9]} 6... dxc4 {[%clk 0:00:51.7]} 7. Nxc6 {[%clk 0:00:51.8]} 7... bxc6 {[%clk 0:00:49.4]} 8. O-O {[%clk 0:00:51.4]} 8... Ba6 {[%clk 0:00:47]} 9. d3 {[%clk 0:00:50.1]} 9... cxd3 {[%clk 0:00:45.4]} 10. cxd3 {[%clk 0:00:49.8]} 10... c5 {[%clk 0:00:43.8]} 11. Nc3 {[%clk 0:00:49.5]} 11... c4 {[%clk 0:00:42.2]} 12. Bg5 {[%clk 0:00:43.2]} 12... cxd3 {[%clk 0:00:39.2]} 13. Re1 {[%clk 0:00:42.3]} 13... Rd8 {[%clk 0:00:35.7]} 14. Re3 {[%clk 0:00:41]} 14... O-O {[%clk 0:00:29.3]} 15. Bxf6 {[%clk 0:00:40.3]} 15... Bxf6 {[%clk 0:00:27.3]} 16. Nd5 {[%clk 0:00:40]} 16... Rxd5 {[%clk 0:00:24.1]} 17. exd5 {[%clk 0:00:38.8]} 17... e4 {[%clk 0:00:23.1]} 18. b4 {[%clk 0:00:36]} 18... Re8 {[%clk 0:00:22.3]} 19. a4 {[%clk 0:00:34.1]} 19... Bg5 {[%clk 0:00:21]} 20. Rg3 {[%clk 0:00:31.1]} 20... d2 {[%clk 0:00:15.5]} 21. b5 {[%clk 0:00:30]} 21... h6 {[%clk 0:00:10.9]} 22. Rxg5 {[%clk 0:00:28]} 22... Kh7 {[%clk 0:00:10.3]} 23. bxa6 {[%clk 0:00:26.8]} 23... hxg5 {[%clk 0:00:09.2]} 24. Qxd2 {[%clk 0:00:26.1]} 24... c6 {[%clk 0:00:08.1]} 25. Qxg5 {[%clk 0:00:24.7]} 25... Rd8 {[%clk 0:00:06.4]} 26. dxc6 {[%clk 0:00:23.1]} 26... Rd3 {[%clk 0:00:02.2]} 27. c7 {[%clk 0:00:19.7]} 1-0

[Event "Live Chess"]
[Site "Chess.com"]
[Date "2010.12.14"]
[Round "-"]
[White "DimitrisC"]
[Black "hipposcottimus"]
[Result "0-1"]
[CurrentPosition "r4k2/1p5p/p5p1/2P5/3N1n2/2P2N2/P1b2PPP/4R1K1 w - -"]
[Timezone "UTC"]
[ECO "D00"]
[ECOUrl "https://www.chess.com/openings/Queens-Pawn-Opening-Blackmar-Gambit"]
[UTCDate "2010.12.14"]
[UTCTime "10:10:43"]
[WhiteElo "1407"]
[BlackElo "1648"]
[TimeControl "60"]
[Termination "hipposcottimus won on time"]
[StartTime "10:10:43"]
[EndDate "2010.12.14"]
[EndTime "10:12:53"]
[Link "https://www.chess.com/game/live/77163833"]

1. d4 {[%clk 0:01:00]} 1... d5 {[%clk 0:01:00]} 2. e4 {[%clk 0:00:59.2]} 2... c5 {[%clk 0:00:59.7]} 3. e5 {[%clk 0:00:56.7]} 3... f6 {[%clk 0:00:57.2]} 4. c3 {[%clk 0:00:54.1]} 4... fxe5 {[%clk 0:00:51.2]} 5. Qh5+ {[%clk 0:00:52.4]} 5... g6 {[%clk 0:00:48.7]} 6. Qxe5 {[%clk 0:00:51.9]} 6... Nc6 {[%clk 0:00:46.5]} 7. Qxh8 {[%clk 0:00:50.4]} 7... Nf6 {[%clk 0:00:43.4]} 8. Bh6 {[%clk 0:00:43.2]} 8... Kf7 {[%clk 0:00:35.9]} 9. Bxf8 {[%clk 0:00:39.4]} 9... Qxf8 {[%clk 0:00:35.6]} 10. Qxf8+ {[%clk 0:00:38.3]} 10... Kxf8 {[%clk 0:00:35.3]} 11. dxc5 {[%clk 0:00:36.9]} 11... e5 {[%clk 0:00:33.7]} 12. Bb5 {[%clk 0:00:34.1]} 12... Ne7 {[%clk 0:00:29.5]} 13. Nf3 {[%clk 0:00:32.6]} 13... a6 {[%clk 0:00:28.6]} 14. Ba4 {[%clk 0:00:30.6]} 14... e4 {[%clk 0:00:27.7]} 15. Nd4 {[%clk 0:00:29.1]} 15... Ng4 {[%clk 0:00:27.3]} 16. O-O {[%clk 0:00:27.4]} 16... Ne5 {[%clk 0:00:26.9]} 17. Bb3 {[%clk 0:00:24.2]} 17... Nd3 {[%clk 0:00:26.5]} 18. Bxd5 {[%clk 0:00:22.1]} 18... Nxd5 {[%clk 0:00:24.6]} 19. Nd2 {[%clk 0:00:19.1]} 19... Nxb2 {[%clk 0:00:23.2]} 20. Nxe4 {[%clk 0:00:17]} 20... Nd3 {[%clk 0:00:22.9]} 21. Rfd1 {[%clk 0:00:14.5]} 21... Nb2 {[%clk 0:00:19.4]} 22. Rd2 {[%clk 0:00:13]} 22... Nc4 {[%clk 0:00:17.2]} 23. Re2 {[%clk 0:00:11]} 23... Nf4 {[%clk 0:00:16.2]} 24. Ree1 {[%clk 0:00:09.2]} 24... Nd3 {[%clk 0:00:14.9]} 25. Red1 {[%clk 0:00:07.7]} 25... Ndb2 {[%clk 0:00:13.8]} 26. Rd2 {[%clk 0:00:04.8]} 26... Nxd2 {[%clk 0:00:12.5]} 27. Nxd2 {[%clk 0:00:04.8]} 27... Nd3 {[%clk 0:00:11.7]} 28. Rd1 {[%clk 0:00:03.6]} 28... Nf4 {[%clk 0:00:08.1]} 29. N2f3 {[%clk 0:00:02.5]} 29... Bf5 {[%clk 0:00:06.8]} 30. Re1 {[%clk 0:00:00.4]} 30... Bc2 {[%clk 0:00:05.2]} 0-1